bitfinex-derivatives/quotes_BTCF0:USTF0_20251120
["timestamp","ask_amount","ask_price","bid_price","bid_amount"]
[1763680246112,0.02664,87690.0,87689.0,0.0114175]
[1763680246311,0.00219803,87690.0,87689.0,0.0369175]
[1763680246612,0.00219803,87690.0,87689.0,0.0255]
[1763680248112,0.00219803,87690.0,87685.0,0.1108]
[1763680248113,0.05311,87686.0,87685.0,0.1108]
[1763680248325,0.05530803,87686.0,87685.0,0.1108]
[1763680248511,0.02883803,87686.0,87685.0,0.1108]
[1763680249208,0.00219803,87686.0,87685.0,0.16333]
[1763680250812,0.00219803,87686.0,87684.0,0.00017104]
[1763680250813,0.0380581,87685.0,87684.0,0.00017104]
[1763680251014,0.05539741,87685.0,87684.0,0.00017104]
[1763680251512,0.00228741,87685.0,87684.0,0.05270104]
[1763680251713,0.05539741,87685.0,87684.0,0.02567104]
[1763680251921,0.06681551,87685.0,87684.0,0.00017104]
[1763680252511,0.06681551,87685.0,87665.0,0.3608]
[1763680252512,0.02664,87666.0,87665.0,0.3608]
[1763680252716,0.02895433,87666.0,87662.0,0.011421]
[1763680252905,0.00231433,87666.0,87655.0,0.3608]
[1763680253112,0.00231433,87666.0,87655.0,0.372222]
[1763680253113,0.02664,87660.0,87655.0,0.372222]
[1763680253311,0.00219803,87656.0,87655.0,0.397722]
[1763680253506,0.00219803,87656.0,87655.0,0.41333]
[1763680255610,0.04025993,87656.0,87655.0,0.3863]
[1763680255809,0.02892702,87656.0,87655.0,0.3863]
[1763680256207,0.00228702,87656.0,87655.0,0.3863]
[1763680256406,0.00228702,87656.0,87655.0,0.41333]
[1763680257214,8.899e-05,87656.0,87655.0,0.41333]
[1763680258216,0.00228702,87656.0,87655.0,0.41333]
[1763680259416,8.899e-05,87656.0,87655.0,0.41333]
[1763680260130,0.00228702,87656.0,87655.0,0.41333]
[1763680260424,0.00017104,87664.0,87663.0,0.063951]
[1763680260622,0.3608,87675.0,87674.0,0.0639495]
[1763680260820,0.05311,87664.0,87658.0,0.0114216]
[1763680261011,0.36299803,87675.0,87645.0,0.37682]
[1763680261012,0.01361963,87659.0,87647.0,0.011423]
[1763680261213,0.01361963,87659.0,87645.0,0.01602]
[1763680261214,0.02664,87645.0,87644.0,0.11076]
[1763680261426,0.02664,87645.0,87638.0,0.00013822]
[1763680261427,0.05311,87639.0,87638.0,0.00013822]
[1763680261724,0.02883803,87639.0,87638.0,0.05266822]
[1763680262022,0.00219803,87639.0,87638.0,0.05266822]
[1763680262426,0.05530803,87639.0,87638.0,0.02563822]
[1763680262808,0.05530803,87639.0,87638.0,0.00013822]
[1763680263334,0.0623951,87631.0,87620.0,0.0114265]
[1763680263537,0.06459313,87631.0,87620.0,0.0114265]
[1763680263819,0.06459313,87631.0,87622.0,0.0114262]
[1763680264023,0.06459313,87631.0,87618.0,0.0114267]
[1763680264224,0.05097,87608.0,87607.0,0.0114282]
[1763680264431,0.05097,87608.0,87581.0,0.05670045]
[1763680264432,0.01518,87598.0,87586.0,0.3608]
[1763680264719,0.01518,87598.0,87580.0,0.0114318]
[1763680264720,0.05316803,87587.0,87580.0,0.0114318]
[1763680264911,0.05316803,87587.0,87585.0,0.05065]
[1763680264912,0.00011818,87586.0,87585.0,0.05065]
[1763680265223,0.00231621,87586.0,87585.0,0.05065]
[1763680266222,0.05328621,87586.0,87577.0,0.00017125]
[1763680266522,0.05328621,87586.0,87581.0,0.0114316]
[1763680266718,0.05328621,87586.0,87577.0,0.00017125]
[1763680266924,0.05097,87578.0,87577.0,0.00017125]
[1763680267114,0.05316803,87578.0,87577.0,0.00017125]
[1763680267426,0.05097,87566.0,87565.0,0.3608]
[1763680267723,0.00231922,87566.0,87565.0,0.0620838]
[1763680268222,0.00231922,87566.0,87540.0,0.21640654]
[1763680268223,0.05097,87557.0,87539.0,0.3608]
[1763680268421,0.00232488,87556.0,87555.0,0.05065]
[1763680268725,0.00232488,87556.0,87547.0,0.36090957]
[1763680268726,0.02780488,87556.0,87547.0,0.36108082]
[1763680268918,0.02780488,87556.0,87548.0,0.011436]
[1763680269121,0.02780488,87556.0,87547.0,0.00028082]
[1763680269122,0.05097,87548.0,87547.0,0.00028082]
[1763680269315,0.06470937,87548.0,87547.0,0.00028082]
[1763680269515,0.05327337,87548.0,87547.0,0.00028082]
[1763680270317,0.05327337,87548.0,87510.0,0.3608]
[1763680270318,0.01569,87525.0,87510.0,0.3608]
[1763680270530,0.05316803,87511.0,87510.0,0.3608]
[1763680270843,0.05316803,87511.0,87505.0,0.3608]
[1763680271015,0.02767803,87511.0,87506.0,0.0114415]
[1763680271212,0.00219803,87511.0,87510.0,0.05065]
[1763680271426,0.00230829,87511.0,87510.0,0.05065]
[1763680271618,0.00011026,87511.0,87510.0,0.05065]
[1763680272029,0.00230829,87511.0,87510.0,0.05065]
[1763680272227,0.00230829,87511.0,87508.0,0.11112]
[1763680272228,0.02548,87509.0,87508.0,0.11112]
[1763680272528,0.02767803,87509.0,87505.0,0.3558]
[1763680272728,0.05097,87488.0,87487.0,0.3608]
[1763680273023,0.05327341,87488.0,87477.0,0.3608]
[1763680273226,0.00230341,87488.0,87487.0,0.05065]
[1763680274130,0.02778341,87488.0,87486.0,0.3608]
[1763680274317,0.02778341,87488.0,87477.0,0.3608]
[1763680274318,0.00230341,87488.0,87478.0,0.0114451]
[1763680274524,0.00230341,87488.0,87487.0,0.05065]
[1763680274720,0.02778341,87488.0,87477.0,0.3608]
[1763680275119,0.00230341,87488.0,87487.0,0.05065]
[1763680275431,0.00230341,87488.0,87487.0,0.41145]
[1763680275626,0.02778341,87488.0,87487.0,0.3608]
[1763680275931,0.02778341,87488.0,87477.0,0.3608]
[1763680276132,0.00230341,87488.0,87487.0,0.0114439]
[1763680276426,0.00010538,87488.0,87487.0,0.0620939]
[1763680278826,0.00017145,87496.0,87495.0,0.0620929]
[1763680279132,0.0114388,87527.0,87517.0,0.05065]
[1763680279133,0.3608,87527.0,87517.0,0.05065]
[1763680279325,0.00219803,87526.0,87521.0,0.0114394]
[1763680279628,0.00219803,87526.0,87512.0,0.0114406]
[1763680279629,0.36299803,87526.0,87512.0,0.0114406]
[1763680279831,8.655e-05,87525.0,87524.0,0.0246]
[1763680280017,0.00228458,87525.0,87524.0,0.0246]
[1763680280224,0.00228458,87525.0,87524.0,0.05065]
[1763680280423,8.655e-05,87525.0,87524.0,0.05065]
[1763680280621,0.00017145,87533.0,87532.0,0.0620881]
[1763680280820,0.00236948,87533.0,87532.0,0.05065]
[1763680281526,0.3608,87557.0,87556.0,0.05065]
[1763680281828,0.36308219,87557.0,87550.0,0.01566]
[1763680282026,0.36308219,87557.0,87556.0,0.05065]
[1763680282331,0.36308219,87557.0,87529.0,0.3608]
[1763680282332,0.0114358,87550.0,87529.0,0.3608]
[1763680282632,0.36308219,87557.0,87548.0,0.422886]
[1763680282633,0.00228219,87549.0,87548.0,0.422886]
[1763680282831,0.00228219,87549.0,87548.0,0.05065]
[1763680284821,0.011437,87541.0,87533.0,0.01583135]
[1763680285026,0.00219803,87534.0,87533.0,0.01583135]
[1763680285429,0.00219803,87534.0,87533.0,0.00017135]
[1763680285930,0.00219803,87534.0,87533.0,0.05082135]
[1763680288125,0.05316803,87534.0,87533.0,0.00017135]
[1763680288529,0.00219803,87534.0,87533.0,0.05082135]
[1763680291335,0.32237416,87541.0,87540.0,0.06268]
[1763680291527,0.3608,87549.0,87548.0,0.060216]
[1763680291727,0.36153267,87549.0,87548.0,0.06241403]
[1763680291927,0.00073267,87549.0,87548.0,0.06241403]
[1763680292127,0.00017135,87550.0,87549.0,0.04878]
[1763680292328,0.00017135,87550.0,87549.0,0.05097803]
[1763680292527,0.00090402,87550.0,87549.0,0.05097803]
[1763680293037,0.00017135,87550.0,87549.0,0.41177803]
[1763680293532,0.00090402,87550.0,87549.0,0.41177803]
[1763680293731,0.00017135,87550.0,87549.0,0.41177803]
[1763680294434,0.3608,87568.0,87567.0,0.0357235]
[1763680294633,0.00073267,87568.0,87567.0,0.06207153]
[1763680295428,0.01216607,87568.0,87567.0,0.02648803]
[1763680295631,0.00073267,87568.0,87567.0,0.03792153]
[1763680296232,0.00073267,87568.0,87567.0,0.06207153]
[1763680296737,0.00073267,87568.0,87567.0,0.05063803]
[1763680297231,0.00017135,87576.0,87575.0,0.04844]
[1763680297433,0.00090402,87576.0,87575.0,0.05063803]
[1763680299534,0.06066632,87576.0,87575.0,0.00219803]
[1763680299741,0.04923402,87576.0,87575.0,0.00219803]
[1763680300853,0.0597644,87560.0,87559.0,0.00017135]
[1763680301040,0.0597644,87560.0,87547.0,0.3608]
[1763680301041,0.011436,87548.0,87530.0,0.3608]
[1763680301235,0.0114378,87535.0,87533.0,0.0114379]
[1763680301432,0.00073267,87534.0,87533.0,0.02429]
[1763680301637,0.04833,87544.0,87543.0,0.0114366]
[1763680301830,0.00073267,87544.0,87543.0,0.01363463]
[1763680302545,0.00073267,87544.0,87543.0,0.00219803]
[1763680302734,0.02422267,87544.0,87543.0,0.00219803]
[1763680303132,0.04906267,87544.0,87543.0,0.00219803]
[1763680303831,0.02422267,87544.0,87543.0,0.00219803]
[1763680304033,0.00073267,87544.0,87543.0,0.05063803]
[1763680305239,0.04906267,87544.0,87543.0,0.00219803]
[1763680306737,0.04906267,87544.0,87535.0,0.00017135]
[1763680306738,0.04833,87543.0,87542.0,0.0114367]
[1763680307043,0.05052803,87543.0,87542.0,0.0114367]
[1763680307334,0.3608,87549.0,87548.0,0.059876]
[1763680307535,0.00017135,87552.0,87551.0,0.04844]
[1763680307736,0.00236938,87552.0,87551.0,0.04844]
[1763680307928,0.0114358,87549.0,87535.0,0.00017135]
[1763680308125,0.00219803,87548.0,87545.0,0.0114363]
[1763680308728,0.00219803,87548.0,87547.0,0.02429]
[1763680309137,0.00219803,87548.0,87547.0,0.04844]
[1763680310439,0.04833,87545.0,87544.0,0.0114364]
[1763680310643,0.0114365,87544.0,87539.0,0.0114371]
[1763680310941,0.21640654,87550.0,87539.0,0.0598771]
[1763680310942,0.00219803,87540.0,87539.0,0.0598771]
[1763680311140,0.00219803,87540.0,87535.0,0.00017135]
[1763680311141,0.04833,87536.0,87535.0,0.00017135]
[1763680311436,0.09060242,87536.0,87535.0,0.00017135]
[1763680311642,0.09060242,87536.0,87535.0,0.02446135]
[1763680311845,0.09060242,87536.0,87535.0,0.00017135]
[1763680312235,0.05052803,87536.0,87535.0,0.00017135]
[1763680312435,0.09098666,87536.0,87535.0,0.00017135]
[1763680312831,0.18020963,87536.0,87535.0,0.00017135]
[1763680313036,0.05052803,87536.0,87535.0,0.00017135]
[1763680313438,0.01144,87517.0,87516.0,0.3608]
[1763680313638,0.03712803,87517.0,87516.0,0.3608]
[1763680314335,0.03712803,87517.0,87516.0,0.38509]
[1763680314540,0.03712803,87517.0,87516.0,0.40924]
[1763680314940,0.02568803,87517.0,87516.0,0.40924]
[1763680315643,0.00219803,87517.0,87516.0,0.40924]
[1763680317439,0.0746802,87516.0,87515.0,0.00013911]
[1763680317634,0.07687823,87516.0,87515.0,0.00013911]
[1763680317838,0.43767823,87516.0,87515.0,0.00013911]
[1763680318243,0.43767823,87516.0,87508.0,0.00017135]
[1763680318244,0.0597711,87509.0,87508.0,0.00017135]
[1763680318439,0.06196913,87509.0,87508.0,0.00017135]
[1763680319243,0.06209525,87509.0,87508.0,0.00017135]
[1763680319744,0.06209525,87509.0,87508.0,4.1e-07]
[1763680319947,0.06209525,87509.0,87508.0,0.01144161]
[1763680319948,0.05065415,87509.0,87508.0,0.01144161]
[1763680320138,0.02581415,87509.0,87508.0,0.05988161]
[1763680320540,0.05065415,87509.0,87508.0,0.04844041]
[1763680320847,0.05065415,87509.0,87508.0,4.1e-07]
[1763680321044,0.02716415,87509.0,87508.0,4.1e-07]
[1763680321345,0.01491,87490.0,87469.0,0.0598862]
[1763680321546,0.00231722,87489.0,87481.0,0.04844]
[1763680321739,0.04833,87476.0,87475.0,0.3608]
[1763680321938,0.06371762,87476.0,87472.0,0.0114458]
[1763680322138,0.06371762,87476.0,87466.0,0.3608]
[1763680322335,0.01538762,87476.0,87469.0,0.02429]
[1763680322538,0.01538762,87476.0,87458.0,0.37646]
[1763680322539,0.04789,87474.0,87473.0,0.0114457]
[1763680322738,0.05008803,87474.0,87472.0,0.0114459]
[1763680322938,0.05008803,87474.0,87471.0,0.011446]
[1763680323141,0.05008803,87474.0,87473.0,0.02496]
[1763680323742,0.04832,87472.0,87471.0,0.0114459]
[1763680324045,0.0114464,87468.0,87465.0,0.3608]
[1763680324244,0.05051803,87466.0,87465.0,0.3608]
[1763680324638,0.05051803,87466.0,87465.0,0.38576]
[1763680325038,0.05051803,87466.0,87465.0,0.4114]
[1763680325249,9.934e-05,87476.0,87475.0,0.0620455]
[1763680325450,0.00229737,87476.0,87475.0,0.0620455]
[1763680325836,0.00229737,87476.0,87475.0,0.0506]
[1763680326041,0.02621737,87476.0,87475.0,0.0506]
[1763680326344,0.00229737,87476.0,87475.0,0.0506]
[1763680327448,0.00229737,87476.0,87475.0,0.0620455]
[1763680328157,0.00229737,87476.0,87475.0,0.0506]
[1763680328453,0.04832,87466.0,87461.0,0.0114473]
[1763680328644,0.00219803,87462.0,87457.0,0.0114478]
[1763680328947,0.0597681,87455.0,87454.0,0.00012259]
[1763680329151,0.06196613,87455.0,87454.0,0.00012259]
[1763680329351,0.42290222,87455.0,87454.0,0.00012259]
[1763680329944,0.42290222,87455.0,87430.0,0.3608]
[1763680329945,0.0597701,87440.0,87430.0,0.3608]
[1763680330146,0.0597701,87440.0,87430.0,0.4114]
[1763680330147,0.00219803,87431.0,87430.0,0.4114]
[1763680330746,0.00017156,87444.0,87443.0,0.0620497]
[1763680330945,0.00248594,87444.0,87443.0,0.0620497]
[1763680331643,0.00248594,87444.0,87430.0,0.3608]
[1763680331644,0.04832,87421.0,87420.0,0.3608]
[1763680331954,0.04832,87421.0,87386.0,0.00822]
[1763680331955,0.02392,87417.0,87407.0,0.3608]
[1763680332245,0.00219803,87408.0,87407.0,0.4114]
[1763680332443,0.00013581,87416.0,87415.0,0.0620534]
[1763680333147,0.00013581,87416.0,87407.0,0.3608]
[1763680333148,0.06383384,87416.0,87407.0,0.3608]
[1763680333352,0.07528714,87416.0,87407.0,0.3608]
[1763680333551,0.0114537,87413.0,87407.0,0.3608]
[1763680333851,0.00219803,87408.0,87407.0,0.4114]
[1763680334451,0.02611803,87408.0,87407.0,0.3608]
[1763680334942,0.00219803,87408.0,87407.0,0.4114]
[1763680335341,0.00013581,87416.0,87415.0,0.0620534]
[1763680335543,0.3608,87437.0,87420.0,0.0620527]
[1763680335746,0.0114516,87429.0,87415.0,0.3608]
[1763680335940,0.00219803,87428.0,87419.0,0.0114528]
[1763680336362,0.0114522,87425.0,87415.0,0.3608]
[1763680336550,0.00219803,87424.0,87422.0,0.0114524]
[1763680336750,0.00219803,87424.0,87423.0,0.0506]
[1763680336946,0.00219803,87424.0,87422.0,0.0114524]
[1763680336947,0.00012589,87427.0,87426.0,0.0506]
[1763680337144,0.00017156,87432.0,87431.0,0.0506]
[1763680337345,0.00236959,87432.0,87431.0,0.0620513]
[1763680337552,0.00236959,87432.0,87431.0,0.0506]
[1763680337756,0.00236959,87432.0,87415.0,0.3608]
[1763680337757,0.0114518,87428.0,87415.0,0.3608]
[1763680337948,0.00219803,87427.0,87426.0,0.0506]
[1763680338347,0.011453,87418.0,87414.0,0.36097156]
[1763680338548,0.00219803,87415.0,87414.0,0.38593156]
[1763680338852,0.00219803,87415.0,87414.0,0.41157156]
[1763680339254,0.3608,87430.0,87429.0,0.0506]
[1763680339455,0.36299803,87430.0,87429.0,0.0506]
[1763680339850,0.00219803,87430.0,87429.0,0.0506]
[1763680340259,0.00017156,87432.0,87431.0,0.0506]
[1763680340562,0.3608,87449.0,87439.0,0.0114501]
[1763680340746,0.3608,87464.0,87456.0,0.011448]
[1763680340950,0.36299803,87457.0,87456.0,0.0506]
[1763680341652,0.3608,87457.0,87456.0,0.0506]
[1763680341853,0.00017156,87465.0,87455.0,0.0114481]
[1763680341854,0.00017156,87465.0,87464.0,0.0506]
[1763680342060,0.00236959,87465.0,87464.0,0.062047]
[1763680342561,0.1063515,87477.0,87472.0,0.0620459]
[1763680342856,0.1063515,87477.0,87464.0,0.011447]
[1763680342857,0.01300531,87477.0,87464.0,0.3608]
[1763680343059,0.00219803,87465.0,87464.0,0.4114]
[1763680343668,0.00219803,87465.0,87464.0,0.0506]
[1763680345064,0.00219803,87465.0,87458.0,0.11148]
[1763680345356,0.00219803,87465.0,87464.0,0.0506]
[1763680346965,0.00219803,87465.0,87442.0,0.0114498]
[1763680346966,0.0114487,87451.0,87436.0,0.3608]
[1763680347158,0.00219803,87449.0,87445.0,0.0114493]
[1763680347461,0.05051803,87449.0,87428.0,0.11148]
[1763680347663,0.05051803,87449.0,87432.0,0.0114511]
[1763680347967,0.02611803,87449.0,87447.0,0.0114491]
[1763680348460,0.00219803,87449.0,87448.0,0.05077156]
[1763680349050,0.3608,87454.0,87453.0,0.0620484]
[1763680349267,0.3608,87467.0,87466.0,0.0506]
[1763680349456,0.36299803,87467.0,87466.0,0.0506]
[1763680349858,0.40326699,87467.0,87466.0,0.0506]
[1763680350160,0.36299803,87467.0,87466.0,0.0506]
[1763680350560,0.36299803,87467.0,87466.0,0.0620467]
[1763680351064,0.17271236,87480.0,87466.0,0.0620467]
[1763680351065,0.06011158,87491.0,87485.0,0.043]
[1763680351263,0.00219803,87485.0,87484.0,0.0544443]
[1763680351861,0.00219803,87485.0,87484.0,0.043]
[1763680353064,0.00017145,87493.0,87492.0,0.0552533]
[1763680353652,0.04030478,87506.0,87505.0,0.0114416]
[1763680353853,0.00219803,87506.0,87505.0,0.0114416]
[1763680356058,0.01363953,87506.0,87505.0,0.02163]
[1763680357554,0.00219803,87506.0,87505.0,0.0330716]
[1763680358367,0.00219803,87506.0,87505.0,0.02163]
[1763680358667,0.00219803,87506.0,87505.0,0.0553216]
[1763680359271,0.00219803,87506.0,87505.0,0.04388]
[1763680359864,0.00219803,87506.0,87505.0,0.0553216]
[1763680360159,0.00219803,87506.0,87505.0,0.04388]
[1763680360160,0.04737803,87506.0,87505.0,0.04388]
[1763680360365,0.04737803,87506.0,87505.0,0.02163]
[1763680361372,0.04737803,87506.0,87505.0,0.0553216]
[1763680361767,0.00219803,87506.0,87505.0,0.04388]
[1763680363271,0.04737803,87506.0,87497.0,0.36097145]
[1763680363465,0.00219803,87506.0,87501.0,0.011442]
[1763680363668,0.00017145,87514.0,87513.0,0.04388]
[1763680363869,0.0114377,87536.0,87513.0,0.3608]
[1763680364172,0.21789236,87523.0,87522.0,0.40468]
[1763680364376,0.00219803,87523.0,87522.0,0.4161194]
[1763680364875,0.00011335,87531.0,87530.0,0.04388]
[1763680365180,0.00231138,87531.0,87530.0,0.04388]
[1763680366771,0.02558138,87531.0,87530.0,0.04388]
[1763680367576,0.0566203,87515.0,87501.0,0.3608]
[1763680367773,0.41961833,87515.0,87501.0,0.3608]
[1763680368364,0.41961833,87515.0,87509.0,0.011441]
[1763680368878,0.41961833,87515.0,87501.0,0.3608]
[1763680368879,0.41961833,87515.0,87511.0,0.0114407]
[1763680369377,0.41961833,87515.0,87513.0,0.0114405]
[1763680369573,0.41961833,87515.0,87501.0,0.3608]
[1763680370169,0.41961833,87515.0,87506.0,0.0114414]
[1763680370380,0.41961833,87515.0,87508.0,0.0114411]
[1763680370878,0.41961833,87515.0,87511.0,0.0114407]
[1763680371076,0.41961833,87515.0,87514.0,0.04405145]
[1763680371077,0.38626803,87515.0,87514.0,0.04405145]
[1763680371265,0.3608,87529.0,87514.0,0.04405145]
[1763680371266,0.04030478,87521.0,87519.0,0.0553198]
[1763680371466,0.04030478,87521.0,87520.0,0.04388]
[1763680371467,0.00219803,87521.0,87520.0,0.04388]
[1763680371869,0.3608,87529.0,87528.0,0.0553186]
[1763680372074,0.00011335,87531.0,87530.0,0.04388]
[1763680372776,0.40110478,87545.0,87544.0,0.04388]
[1763680372976,0.36299803,87545.0,87544.0,0.0553165]
[1763680373975,0.37542466,87545.0,87544.0,0.0553165]
[1763680374481,0.37542466,87545.0,87544.0,0.04388]
[1763680374972,0.36299803,87545.0,87544.0,0.04388]
[1763680375175,0.00219803,87545.0,87544.0,0.04388]
[1763680375373,0.04030478,87559.0,87556.0,0.04388]
[1763680375581,0.00219803,87559.0,87558.0,0.04388]
[1763680377367,0.00219803,87559.0,87558.0,0.0553147]
[1763680377568,0.01243851,87562.0,87561.0,0.04388]
[1763680377769,0.00219803,87562.0,87561.0,0.04388]
[1763680378265,0.40110478,87573.0,87572.0,0.02163]
[1763680378469,0.37443073,87573.0,87572.0,0.02163]
[1763680378672,0.39770073,87573.0,87572.0,0.02163]
[1763680378876,0.36299803,87573.0,87572.0,0.04388]
[1763680380381,0.04518,87565.0,87564.0,0.00017134]
[1763680380577,0.04737803,87565.0,87564.0,0.00017134]
[1763680380881,0.00219803,87565.0,87564.0,0.05548524]
[1763680381068,0.00219803,87565.0,87564.0,0.04405134]
[1763680381268,0.02546803,87565.0,87564.0,0.04405134]
[1763680381670,0.02546803,87565.0,87545.0,0.1227962]
[1763680381671,0.01362,87552.0,87542.0,0.3608]
[1763680381871,0.02546803,87543.0,87542.0,0.38243]
[1763680382172,0.00219803,87543.0,87542.0,0.04388]
[1763680382572,0.02546803,87543.0,87542.0,0.04388]
[1763680382772,0.02546803,87543.0,87542.0,0.0553168]
[1763680382977,0.00219803,87543.0,87542.0,0.4161168]
[1763680383283,0.00017097,87551.0,87550.0,0.0543457]
[1763680383667,0.00017097,87551.0,87550.0,0.4151457]
[1763680383872,0.04030478,87562.0,87561.0,0.0543443]
[1763680384368,0.3608,87564.0,87563.0,0.054344]
[1763680384571,0.04030478,87566.0,87565.0,0.04291]
[1763680384772,0.1362917,87581.0,87568.0,0.04291]
[1763680384773,0.04030478,87569.0,87568.0,0.04291]
[1763680384969,0.04250281,87569.0,87568.0,0.04291]
[1763680385168,0.02519803,87569.0,87568.0,0.04291]
[1763680385573,0.00219803,87569.0,87568.0,0.0543434]
[1763680387383,0.43688221,87579.0,87578.0,0.0114321]
[1763680387585,0.43761488,87579.0,87578.0,0.01363013]
[1763680387879,0.39733957,87579.0,87578.0,0.01363013]
[1763680388082,0.39733957,87579.0,87578.0,0.05654013]
[1763680388083,0.3608,87579.0,87578.0,0.05654013]
[1763680388285,0.3608,87583.0,87582.0,0.0543415]
[1763680388490,0.3608,87583.0,87582.0,0.05653953]
[1763680388981,0.04027531,87593.0,87592.0,0.0324702]
[1763680389288,0.05736959,87593.0,87592.0,0.05653823]
[1763680389482,0.04501267,87593.0,87592.0,0.05653823]
[1763680389973,0.01306808,87593.0,87592.0,0.05653823]
[1763680390177,0.00073267,87593.0,87592.0,0.04510803]
[1763680391376,0.01336547,87593.0,87592.0,0.04510803]
[1763680391572,0.00073267,87593.0,87592.0,0.04510803]
[1763680391984,0.04501267,87593.0,87592.0,0.00219803]
[1763680392173,0.05750633,87593.0,87592.0,0.02323803]
[1763680392380,0.3608,87598.0,87597.0,0.0543396]
[1763680392683,0.04027531,87604.0,87601.0,0.04291]
[1763680392885,0.3739264,87602.0,87601.0,0.04510803]
[1763680393088,0.00073267,87602.0,87601.0,0.04510803]
[1763680393392,0.04027531,87612.0,87610.0,0.04291]
[1763680393690,0.04027531,87614.0,87611.0,0.05653573]
[1763680393888,0.00073267,87612.0,87611.0,0.05653573]
[1763680394188,0.24179477,87620.0,87611.0,0.05653573]
[1763680394189,0.04027531,87622.0,87621.0,0.04291]
[1763680394381,0.3608,87623.0,87622.0,0.04291]
[1763680394584,0.02373267,87623.0,87622.0,0.04510803]
[1763680395281,0.00073267,87623.0,87622.0,0.04510803]
[1763680395585,0.3608,87631.0,87630.0,0.0543353]
[1763680395785,0.36153267,87631.0,87630.0,0.05653333]
[1763680397889,0.3741141,87631.0,87630.0,0.05653333]
[1763680398190,0.00073267,87631.0,87630.0,0.05653333]
[1763680398887,0.3608,87641.0,87640.0,0.054334]
[1763680399076,0.92552021,87727.0,87640.0,0.054334]
[1763680399077,0.08455531,87649.0,87648.0,0.04291]
[1763680399280,0.04501267,87649.0,87648.0,0.04510803]
[1763680399688,0.41723547,87649.0,87648.0,0.00219803]
[1763680399894,0.04428,87641.0,87640.0,0.00017114]
[1763680400085,0.04428,87641.0,87640.0,0.00236917]
[1763680400086,0.04501267,87641.0,87640.0,0.00236917]
[1763680401095,0.04501267,87641.0,87640.0,0.05670317]
[1763680401396,0.00073267,87641.0,87640.0,0.05670317]
[1763680402999,0.3608,87649.0,87648.0,0.0543329]
[1763680403195,0.00073267,87649.0,87648.0,0.05653093]
[1763680403691,0.3838,87659.0,87658.0,0.0324616]
[1763680403894,0.40581267,87659.0,87658.0,0.03465963]
[1763680404091,0.40581267,87659.0,87658.0,0.05652963]
[1763680404299,0.40581267,87659.0,87658.0,0.00219803]
[1763680404300,0.41723417,87659.0,87658.0,0.00219803]
[1763680404795,0.41863735,87659.0,87658.0,0.00219803]
[1763680405100,0.41863735,87659.0,87658.0,0.02323803]
[1763680405300,0.41863735,87659.0,87658.0,0.00219803]
[1763680405489,0.41863735,87659.0,87646.0,0.3608]
[1763680405490,0.0557031,87647.0,87646.0,0.3608]
[1763680405794,0.04501267,87647.0,87646.0,0.03466123]
[1763680406695,0.04501267,87647.0,87626.0,0.3608]
[1763680406696,0.0557038,87641.0,87628.0,0.1224655]
[1763680407002,0.00073267,87641.0,87640.0,0.04527917]
[1763680407201,0.3608,87650.0,87648.0,0.0114228]
[1763680407202,0.04428,87649.0,87648.0,0.0114228]
[1763680407496,0.04501267,87649.0,87648.0,0.01362083]
[1763680407698,0.00073267,87649.0,87648.0,0.05653083]
[1763680408787,0.01282468,87659.0,87658.0,0.0543316]
[1763680408990,0.00073267,87659.0,87658.0,0.05652963]
[1763680409698,0.01284981,87659.0,87658.0,0.05652963]
[1763680410696,0.03584981,87659.0,87658.0,0.05652963]
[1763680411200,0.40646,87667.0,87666.0,0.0563206]
[1763680411403,0.36153267,87667.0,87666.0,0.05851863]
[1763680411598,0.3608,87676.0,87675.0,0.0449]
[1763680411794,0.36153267,87676.0,87675.0,0.05851743]
[1763680412505,0.01292871,87676.0,87675.0,0.05851743]
[1763680412998,0.3608,87688.0,87687.0,0.04399]
[1763680413297,0.40740267,87688.0,87687.0,0.02326803]
[1763680413501,0.42009358,87688.0,87687.0,0.02326803]
[1763680413899,0.42009358,87688.0,87687.0,0.00219803]
[1763680414301,0.04587,87680.0,87679.0,0.00017114]
[1763680414606,0.04660267,87680.0,87679.0,0.00236917]
[1763680415102,0.40740267,87680.0,87679.0,0.00236917]
[1763680415701,0.41882147,87680.0,87679.0,0.00236917]
[1763680417104,0.40740267,87680.0,87679.0,0.00236917]
[1763680418204,0.04660267,87680.0,87679.0,0.04635917]
[1763680418397,0.00073267,87680.0,87679.0,0.04635917]
[1763680418598,0.06011158,87695.0,87679.0,0.04635917]
[1763680418599,0.04027531,87694.0,87693.0,0.0554071]
[1763680418802,0.36153267,87697.0,87695.0,0.0114168]
[1763680419002,0.00073267,87697.0,87696.0,0.04618803]
[1763680419411,0.01237856,87697.0,87696.0,0.05760473]
[1763680419706,0.3608,87705.0,87704.0,0.0114156]
[1763680419707,0.38355,87705.0,87704.0,0.0114156]
[1763680419906,0.3738666,87705.0,87704.0,0.05760363]
[1763680420103,0.4197366,87705.0,87704.0,0.04618803]
[1763680420295,0.4197366,87705.0,87704.0,0.02326803]
[1763680420491,0.4197366,87705.0,87704.0,0.00219803]
[1763680420690,0.4197366,87705.0,87689.0,0.3608]
[1763680420691,0.04587,87699.0,87689.0,0.3608]
[1763680420926,0.04587,87691.0,87690.0,0.02326803]
[1763680421099,0.00073267,87691.0,87690.0,0.02326803]
[1763680421301,0.00073267,87691.0,87690.0,0.04618803]
[1763680423101,0.01373,87696.0,87695.0,0.04399]
[1763680423300,0.06033267,87696.0,87695.0,0.05760483]
[1763680423499,0.00073267,87696.0,87695.0,0.00219803]
[1763680423708,0.04027531,87704.0,87703.0,0.0324858]
[1763680423709,0.02275,87704.0,87703.0,0.0324858]
[1763680423905,0.04660267,87704.0,87703.0,0.03468383]
[1763680424202,0.04660267,87704.0,87703.0,0.00219803]
[1763680424203,0.05801827,87704.0,87703.0,0.00219803]
[1763680425301,0.04660267,87704.0,87703.0,0.00219803]
[1763680426003,0.04660267,87704.0,87703.0,0.04618803]
[1763680426205,0.00073267,87704.0,87703.0,0.04618803]
[1763680426702,0.37453,87714.0,87703.0,0.04618803]
[1763680426703,0.46074354,87714.0,87713.0,0.0114145]
[1763680427012,0.00073267,87714.0,87713.0,0.05760253]
[1763680427407,0.03601657,87714.0,87713.0,0.05760253]
[1763680427606,0.03601657,87714.0,87713.0,0.00219803]
[1763680427607,0.04660267,87714.0,87713.0,0.00219803]
[1763680427808,0.0572854,87706.0,87705.0,0.00017104]
[1763680428111,0.41881807,87706.0,87705.0,0.00017104]
[1763680428809,0.40740267,87706.0,87705.0,0.00236907]
[1763680429414,0.40740267,87706.0,87670.0,0.21698807]
[1763680429415,0.76153267,87706.0,87672.0,0.01343]
[1763680429607,0.3608,87673.0,87666.0,0.0114205]
[1763680429917,0.3608,87673.0,87666.0,0.02107]